{"text_format":"1","workbook":"xlsx","n_sheets":6,"sheets":["Directives","Suivi de placement autorisé","Annexe A-Revenu brut","Annexe B-Utilisation des fonds","Annexe C- Détails des employés","Liste des établissements"],"not_rendered":{"charts":0,"images":1,"macros":0,"external_links":3,"defined_names":24,"comments":0,"pivot_tables":0},"unopened":[],"bounds":{"document_bytes":16777216,"sheet_cells":100000,"rows_first":2000,"rows_last":500,"rows_between":2000,"halvings":0,"cell_chars":16384,"cell_head_chars":4096},"cells_cut":0,"cells_raw":0,"read":"whole","date_system":"1900"}

{"sheet":"Directives","index":0,"n_rows":28,"n_cols":14,"rows_kept":28,"cut":false,"hidden":false,"merged":[[10,0,10,37],[9,0,9,37],[8,0,8,37],[5,0,5,37],[6,0,6,37],[7,1,7,37],[27,1,27,33],[26,0,26,33],[12,0,12,37],[14,0,14,37],[22,1,22,33],[18,0,18,37],[23,0,23,33],[24,0,24,33],[25,0,25,33],[15,0,15,37],[16,0,16,37],[20,0,20,33],[19,0,19,37],[21,0,21,37],[13,0,13,37],[17,0,17,37],[0,0,0,12],[0,13,0,37],[1,0,1,37],[2,0,2,37],[4,0,4,37],[3,0,3,37]]}
[null,null,null,null,null,null,null,null,null,null,null,null,null,"Capital synergie\n(version 2021-06)"]
["Directives – Suivi de placement autorisé"]
["Ce document indique la procédure à suivre pour obtenir un avis de conformité certifiant que la société respecte les conditions d'admissibilité d'une société admissible à laquelle une attestation de placement autorisé a été délivrée et ayant émis des actions de son capital-actions à un « investisseur admissible ». L'obtention d'un avis de conformité est requise pour l'année d'imposition donnée ou l'exercice financier donné comprenant le jour du dépôt de la demande et pour chaque année d'imposition ou exercice financier qui commencera dans la période de 48 mois qui suit la fin de l'année d'imposition donnée ou de l'exercice financier donné, selon le cas."]
["Le formulaire « suivi de placement autorisé » doit être présenté au plus tard six mois après la fin de l'année d'imposition donnée ou de l'exercice financier donné de la société admissible."]
["Nous vous conseillons fortement de consulter la fiche détaillée relative au crédit d’impôt capital synergie sur notre site Internet avant de remplir ce formulaire. Assurez-vous d’utiliser la dernière version à jour du formulaire. Par ailleurs, vous pouvez consulter les documents budgétaires émis par le ministère des Finances le 10 mars 2020 et le 25 mars 2021, concernant les paramètres sectoriels de cette mesure fiscale. "]
[]
["Un formulaire complet inclut tous les documents obligatoires suivants :"]
[" -","Formulaire « Suivi de placement autorisé » dûment complété et signé ainsi que les documents obligatoires indiqués à la section 5."]
[]
["ENTENTE D'ÉCHANGE DE RENSEIGNEMENTS"]
["Investissement Québec et Revenu Québec ont conclu, le 7 octobre 2009, une entente intitulée « Entente portant sur l'échange de renseignements nécessaires à l'administration de mesures fiscales ou à l’application d’une loi fiscale ». Cette entente permet à chaque organisme d'échanger des renseignements essentiels à l'exercice de leurs mandats respectifs, et ce, sans qu'il soit nécessaire de demander le consentement de la personne en cause. La communication de renseignements à Revenu Québec se fait exclusivement dans le cadre de cette entente. La Commission d'accès à l'information du Québec a d'ailleurs approuvé cette entente après avoir analysé la nature des renseignements et les fins pour lesquelles ils seraient communiqués, ainsi que les moyens mis en œuvre pour assurer la confidentialité et les mesures de sécurité prévues."]
[]
[]
["HONORAIRES EXIGÉS"]
["Investissement Québec exige des honoraires pour les attestations qu'elle délivre. Si vous souhaitez obtenir plus d'information à ce sujet, consultez la grille de tarification accessible sur notre site Internet. "]
[]
["ADRESSES D’ENVOI ET MODE DE TRANSMISSION DU FORMULAIRE DE SUIVI DE PLACEMENT AUTORISÉ\n"]
["Nous vous recommandons de transmettre le formulaire signé par courrier électronique afin d’accélérer le traitement. À cet effet, veuillez joindre le formulaire dûment signé en format PDF. \n\nLe formulaire peut également être transmis à l’une des adresses postales mentionnées ci-après.\n\nDans tous les cas, assurez-vous d’envoyer le fichier électronique de la demande d’attestations (incluant les annexes) en format Excel."]
["Dans tous les cas, assurez-vous d’envoyer le fichier électronique du formulaire en format Excel.\n"]
["Pour les sociétés dont le siège social est situé dans l'une des régions suivantes :\n\nBas-Saint-Laurent;\nCapitale-Nationale;\nChaudière-Appalaches;\nCentre-du-Québec;\nCôte-Nord;\nEstrie;\nGaspésie-Îles-de-la-Madeleine;\nLanaudière;\nMauricie;\nMontérégie;\nNord-du-Québec;\nSaguenay-Lac-Saint-Jean."]
[]
["Investissement Québec\nDirection, Mesures fiscales (Québec)\nÉdifice Iberville 1\n1195, avenue Lavigerie, bureau 060\nQuébec (Québec)  G1V 4N3"]
[" -","par courriel à l’adresse suivante : mfquebec@invest-quebec.com"]
[]
["Pour les sociétés dont le siège social est situé dans l’une des régions suivantes :\n\nAbitibi-Témiscamingue;\nLaval;\nLaurentides;\nMontréal;\nOutaouais."]
[]
["Investissement Québec\nDirection, Mesures fiscales (Montréal)\n1001, boulevard Robert-Bourassa, bureau 1000\nMontréal (Québec)  H3B 4L4"]
[" -","par courriel à l’adresse suivante : mfmontreal@invest-quebec.com"]

{"sheet":"Suivi de placement autorisé","index":1,"n_rows":211,"n_cols":34,"rows_kept":211,"cut":false,"hidden":false,"merged":[[251,0,251,18],[251,20,251,28],[251,29,251,35],[94,0,94,33],[245,0,246,36],[247,0,247,2],[247,3,247,7],[247,8,247,36],[248,0,248,36],[249,0,249,18],[249,20,249,28],[249,29,249,35],[250,29,250,35],[164,0,164,34],[212,0,212,34],[207,0,207,34],[210,0,210,20],[210,23,210,34],[192,1,192,18],[197,1,198,34],[201,1,201,38],[203,0,203,33],[155,1,156,24],[209,23,209,34],[209,0,209,20],[28,0,28,25],[37,33,37,34],[37,27,37,32],[197,0,198,0],[83,0,83,28],[74,1,74,28],[157,30,157,33],[127,1,127,30],[117,1,117,30],[111,1,111,30],[57,29,57,30],[58,0,58,28],[57,0,57,28],[43,0,43,38],[56,0,56,34],[54,0,54,38],[205,0,205,33],[115,1,115,30],[121,1,121,30],[166,1,166,28],[188,1,188,31],[191,0,193,0],[130,1,130,30],[208,0,208,34],[206,0,206,34],[0,0,0,12],[0,13,0,34],[1,0,1,34],[4,0,4,34],[7,0,7,7],[7,10,7,17],[7,20,7,27],[7,29,7,34],[2,0,2,34],[3,0,3,34],[5,0,5,24],[6,0,6,34],[16,0,16,25],[60,0,60,28],[118,1,118,28],[18,0,18,25],[53,14,53,15],[53,16,53,21],[196,0,196,33],[177,1,177,30],[82,0,82,33],[85,0,85,28],[25,0,25,34],[134,1,134,31],[128,31,128,32],[154,30,154,33],[68,0,68,33],[38,33,38,34],[37,0,37,25],[103,1,103,9],[67,0,67,34],[65,8,65,13],[66,0,66,7],[66,8,66,13],[48,18,48,25],[115,33,115,62],[135,1,135,30],[133,1,133,30],[154,1,154,24],[123,0,123,25],[109,1,109,30],[66,14,66,34],[53,0,53,7],[199,0,199,34],[202,0,202,34],[159,30,159,33],[125,1,125,30],[129,1,129,30],[143,1,143,25],[143,30,143,33],[142,26,142,27],[142,30,142,33],[145,1,145,23],[147,1,147,22],[149,1,149,24],[152,1,152,23],[131,1,131,29],[151,30,151,33],[195,0,195,29],[194,1,194,26],[126,29,126,30],[157,1,157,24],[183,1,183,29],[179,1,179,30],[172,1,172,29],[169,1,169,29],[175,1,175,29],[100,36,100,41],[38,27,38,31],[17,0,17,25],[80,0,80,33],[53,22,53,38],[87,0,87,33],[86,0,86,27],[81,0,81,33],[69,0,69,34],[72,0,72,27],[44,27,44,31],[46,27,46,31],[48,27,48,31],[50,27,50,31],[50,3,50,24],[26,26,26,34],[23,26,23,34],[24,0,24,34],[100,11,100,25],[76,1,76,28],[92,2,92,6],[27,0,27,34],[29,0,29,25],[35,26,35,34],[46,3,46,16],[48,3,48,16],[52,22,52,38],[52,8,52,13],[52,14,52,15],[62,0,62,28],[63,0,63,34],[55,0,55,34],[46,18,46,25],[52,16,52,21],[52,0,52,7],[53,8,53,13],[29,33,29,34],[28,27,28,32],[26,0,26,25],[30,0,30,34],[28,33,28,34],[41,32,41,34],[36,0,36,34],[35,0,35,25],[8,29,8,33],[13,0,13,34],[32,27,32,31],[8,0,8,7],[8,10,8,17],[9,0,9,34],[14,0,14,25],[41,27,41,31],[39,0,39,34],[10,0,10,25],[29,27,29,31],[11,0,11,25],[18,26,18,34],[38,0,38,25],[191,1,191,29],[136,1,136,30],[193,1,193,30],[141,1,141,33],[160,1,160,24],[162,1,162,24],[161,1,161,24],[161,30,161,33],[189,1,189,28],[180,1,180,29],[178,1,178,29],[168,1,168,29],[186,1,186,29],[159,1,159,23],[145,30,145,33],[147,30,147,33],[139,1,139,30],[138,1,138,30],[171,1,171,29],[151,1,151,24],[182,1,182,29],[174,1,174,29],[149,30,149,33],[165,1,165,30],[132,32,133,32],[78,1,78,28],[90,0,90,33],[92,27,92,32],[105,1,105,9],[101,11,101,25],[102,11,102,25],[106,0,106,33],[105,11,105,25],[105,27,105,32],[99,1,99,9],[100,1,100,9],[101,1,101,9],[102,1,102,9],[104,1,104,9],[101,27,101,32],[99,27,99,32],[100,27,100,32],[99,11,99,25],[88,0,88,33],[102,27,102,32],[107,0,107,34],[112,1,112,30],[114,1,114,30],[120,1,120,30],[31,0,31,25],[31,27,31,34],[8,20,8,27],[101,36,101,37],[65,0,65,7],[21,0,21,25],[21,26,21,34],[12,0,12,34],[14,26,14,34],[15,0,15,34],[40,0,40,25],[40,27,40,34],[41,0,41,25],[33,0,33,34],[34,0,34,34],[19,0,19,34],[20,0,20,34],[23,0,23,25],[32,0,32,25]]}
[null,null,null,null,null,null,null,null,null,null,null,null,null,{"$f":"Directives!N1","v":"Capital synergie\n(version 2021-06)"}]
[" SUIVI DE PLACEMENT AUTORISÉ"]
["Avant de remplir le formulaire, veuillez lire l'onglet Directives"]
["1. IDENTIFICATION DE LA SOCIÉTÉ "]
["Nom de la société "]
[]
[]
["NEQ (numéro d'entreprise du Qc)",null,null,null,null,null,null,null,null,null,"Numéro d'entreprise IQ*",null,null,null,null,null,null,null,null,null,"Numéro de dossier IQ*",null,null,null,null,null,null,null,null,"Date d'incorporation"]
[]
["*Il s'agit du numéro d'entreprise ou de dossier pour le crédit d'impôt capital synergie attribué par Investissement Québec (IQ). Vous retracerez ce numéro sur la correspondance reçue de la part d'IQ."]
[]
[]
[]
["Adresse du site Internet de la société "]
[]
[]
["Adresse de tous les établissements - Inscrire l'adresse principale ici         "]
["(s'il y a plus d'un établissement, veuillez nous fournir la liste complète en annexe)"]
[]
[]
["Adresse de correspondance"]
[]
[]
[]
[]
["Représentant autorisé de la société "]
[]
[]
["Titre du représentant (ex.: président(e) de la société)",null,null,null,null,null,null,null,null,null,null,null,null,null,null,null,null,null,null,null,null,null,null,null,null,null,null,"Téléphone",null,null,null,null,null,"Poste"]
[]
[]
["Adresse de courriel du représentant",null,null,null,null,null,null,null,null,null,null,null,null,null,null,null,null,null,null,null,null,null,null,null,null,null,null,"Télécopieur"]
[]
[]
["Mandataire autorisé de la société, le cas échéant"]
[]
[]
["Titre du mandataire (ex.: comptable, consultant externe)",null,null,null,null,null,null,null,null,null,null,null,null,null,null,null,null,null,null,null,null,null,null,null,null,null,null,"Téléphone",null,null,null,null,null,"Poste"]
[]
[]
["Adresse de courriel du mandataire",null,null,null,null,null,null,null,null,null,null,null,null,null,null,null,null,null,null,null,null,null,null,null,null,null,null,"Télécopieur"]
[]
[]
["2. ATTESTATION DE PLACEMENT AUTORISÉ ET EXERCICE FINANCIER VISÉ PAR LE PRÉSENT FORMULAIRE DE SUIVI"]
[null,null,null,"Date de délivrance de l'attestation de placement autorisé : "]
[]
[null,null,null,"Date d'échéance de l'attestation de placement autorisé : "]
[]
[null,null,null,"Montant indiqué sur l'attestation de placement autorisé : "]
[]
[null,null,null,"Montant attribué à un ou des investisseur(s) admissible(s), si différent :"]
[]
["Exercice financier du :",null,null,null,null,null,null,null,null,null,null,null,null,null,"au :"]
[null,null,null,null,null,null,null,null,"(aaaa-mm-jj)",null,null,null,null,null,null,null,"(aaaa-mm-jj)"]
[]
["3. RÉORGANISATION OU ACQUISITION DE CONTRÔLE"]
["Au cours de l'exercice financier visé jusqu'au dépôt du formulaire de suivi de placement autorisé, la société a-t-elle :"]
[null,null,null,null,null,null,null,null,null,null,null,null,null,null,null,null,null,null,null,null,null,null,null,null,null,null,null,null,null,"Oui",null,"Non"]
["— fait l'objet d'une acquisition de contrôle donnant lieu à une fin d'année présumée?"]
[]
["— acquis une participation dans une autre société ou société de personnes?"]
[]
["— fait l'objet d'une réorganisation (ex.: fusion, liquidation, achat ou vente d'actifs en bloc)?"]
["Le cas échéant, précisez la date et la nature des changements survenus :"]
[]
["Date"]
[null,null,null,null,null,null,null,null,"(aaaa-mm-jj)"]
[]
[]
["4. INFORMATION SUR LA SOCIÉTÉ ET SUR L'UTILISATION DES FONDS REÇUS "]
[null,null,null,null,null,null,null,null,null,null,null,null,null,null,null,null,null,null,null,null,null,null,null,null,null,null,null,null,null,null,"Oui",null,"Non"]
[]
["Est-ce que, tout au long de l'année d'imposition visée,  votre société : "]
[]
["—  ","était une société privée sous contrôle canadien;"]
[]
["—  ","exploitait une entreprise au Québec;"]
[]
["—  ","avait un établissement au Québec."]
[]
["Dans la négative, préciser :"]
[]
[]
[null,null,null,null,null,null,null,null,null,null,null,null,null,null,null,null,null,null,null,null,null,null,null,null,null,null,null,null,null,null,"Oui",null,"Non"]
[]
["Est-ce que la proportion des activités de votre société exercées au Québec a changé depuis l'année"]
["d'imposition précédente?  Dans l'affirmative, préciser :"]
[]
[]
[]
["Indiquez le nombre total d’employés à l'emploi de votre société pour l'exercice financier visé. Le nombre total d'employés doit comprendre tous les employés de la société (qu’ils travaillent à temps plein ou à temps partiel, de façon qu’ils aient été à l’emploi de la société pour toute l’année ou pour une période plus courte)."]
[]
[]
[]
["Indiquer le nombre d'employés embauchés au cours de l'exercice financier visé et ce, par titre du poste occupé et en indiquant si l'embauche était prévue au dépôt de la demande d'attestation de placement autorisé."]
[]
[]
[]
[]
[null,"Nombre d'employés embauchés",null,null,null,null,null,null,null,null,null,"Titre du poste occupé",null,null,null,null,null,null,null,null,null,null,null,null,null,null,null,"Embauche prévue                                                        "]
[null,"Exemple : 8",null,null,null,null,null,null,null,null,null,"Programmeurs",null,null,null,null,null,null,null,null,null,null,null,null,null,null,null,"oui"]
[null,"Exemple : 1",null,null,null,null,null,null,null,null,null,"Programmeur",null,null,null,null,null,null,null,null,null,null,null,null,null,null,null,"non"]
[]
[]
[]
[]
[]
["Cocher la ou les catégories qui correspondent le mieux aux activités admissibles réalisées par votre société."]
[]
["1)","Les sciences de la vie, plus précisément :"]
[]
[null," la recherche, le développement, la production et la mise en marché de médicaments pour la santé humaine ou animale;\n la conception, le développement, la fabrication et la commercialisation de produits médicaux physiques ou numériques, autres que des médicaments;\n la recherche, le développement, la production et la mise en marché de produits de santé naturels;"]
["2)","La fabrication ou la transformation;"]
[]
["3)","Les technologies vertes, "]
[null,"soit la fabrication ou la transformation et la recherche et le développement pour l’exploitation commerciale de technologies qui accroissent l’efficacité énergétique ou les économies d’énergie ou qui réduisent les émissions de gaz à effets de serre ou l’impact environnemental;"]
[]
["4)","L'intelligence artificielle,"]
[null," soit la conception et le développement de solutions en intelligence artificielle; "]
[]
["5)","Les technologies de l'information,"]
[null,"soit la fabrication de matériel informatique et de périphériques, de semi-conducteurs et autres composantes électroniques, de matériel de radiodiffusion, de télédiffusion et de communication sans fil, l’édition de logiciels, l’édition de jeux vidéo, le traitement de données, l’hébergement de données et les services connexes et la conception de systèmes informatiques et les services connexes."]
[]
["Cocher si applicable"]
[]
["a)","Votre société a des sociétés auxquelles elle est associée au cours de l'exercice financier visé;"]
["   "]
["b)  ","Compléter l'annexe A;"]
[]
["c)  ","Joindre le formulaire « Rapport d'émission d'actions » si le délai de 6 mois suivant le jour de la délivrance "]
[null,"de l'attestation de placement autorisé est expiré et qu'il n'a pas déjà été transmis;"]
[]
[]
["d)  ","Les activités réalisées par la société sont principalement des activités dans le secteur de la fabrication ou "]
[]
[null,"de la transformation visées au point 2) des activités admissibles et au cours de l'exercice financier visé, des fonds provenant de l'émission d'actions ont été utilisés pour d'autres fins que pour améliorer l'utilisation ou la connexion de nouvelles technologies ou intégrer des technologies permettant notamment la numérisation ou l'automatisation des activités de l'entreprise."]
[]
[]
["e)","Détailler aux annexes B et C l'utilisation des fonds provenant de l'émission des actions du capital-actions "]
[null,"de votre société relative à l'attestation de placement autorisé délivrée;"]
[]
["f)","Pour l'exercice financier visé, est-ce que la société a utilisé les fonds provenant de l'émission des actions pour l'une des fins énumérées ci-après, et dans l'affirmative, indiquer le montant de la dépense engagée pour l'exercice financier visé :"]
[null,null,null,null,null,null,null,null,null,null,null,null,null,null,null,null,null,null,null,null,null,null,null,null,null,null,"Oui",null,"Non",null,"Montant"]
["●","la réalisation d'investissements à l'extérieur du Québec;"]
[]
["●","l'acquisition d'un terrain pour la revente;"]
[]
["●","le remboursement d'une dette;"]
[]
["●","le prêt d'argent;"]
[]
["●","l'achat, l'acquisition ou la souscription d'actions d'autres sociétés, "]
[null,"participation dans des sociétés de personnes ou de parts de fiducies;"]
[]
["●","l'achat d'une entreprise;"]
["●","le versement de dividendes, le remboursement de capital ou toute autre sortie de "]
["●"]
[null,"fonds en faveur d'un actionnaire de la société ou d'une personne qui lui est liée;"]
[]
["●","l'achat d'actions de son capital-actions;"]
[]
["●","en lien avec des activités admissibles des technologies de l'information dont le "]
[null,"contenu encourage la violence, le sexisme, le racisme ou toute autre forme de discrimination ou comporte des scènes de sexualité explicite ou des représentations graphiques de telles scènes ou permettant l'hébergement, la production ou l'échange d'un tel contenu."]
[]
["5. DOCUMENTS OBLIGATOIRES À JOINDRE AU PRÉSENT FORMULAIRE (cocher si les documents sont joints)"]
["—  ","États financiers non consolidés1 de l'exercice financier visé de la société et de toutes les sociétés"]
[null,"auxquelles la société est associée;"]
[]
["—  ","Balances de vérification non consolidées de l'exercice financier visé de la société et de toutes les"]
["      auxquelles la société est associée; ","sociétés auxquelles la société est associée; "]
[]
["—  ","État consolidé des résultats en format Excel pour l'exercice financier visé de la société et de toutes les "]
["     ","sociétés auxquelles la société est associée; "]
[]
["—  ","Organigramme corporatif identifiant les actionnaires et les sociétés auxquelles la société est associée,  "]
["     ","(le pourcentage de détention d'actions de chaque actionnaire doit être inscrit);"]
[]
["—  ","Documents à l'appui de l'annexe B (contrats, factures et toute autre entente);"]
[]
["—  ","Organigramme corporatif indiquant tous les employés de la société en identifiant les nouveaux employés;"]
[]
[]
["—  ","Documents à l'appui de l'annexe C (contrat d'embauche, curriculum vitae, relevé de paie et "]
[null,"relevé d'emploi);"]
[]
[]
["—  ","Information demandée à la section 4;"]
[]
["—  ","Déclarations de revenus CO-17 (incluant les annexes) pour l'année d'imposition visée de la société et "]
["   ","de toutes les sociétés auxquelles la société est associée; "]
[]
["—   ","S'il y a lieu, procuration, dûment signée, désignant un mandataire pour représenter la société ou la"]
[null,"société de personnes auprès d'Investissement Québec.  "]
[null,"Vous pouvez vous inspirer du modèle publié sur le site Internet d'Investissement Québec à l’adresse suivante : "]
[null,"http://www.investquebec.com/documents/qc/formulaires/Procuration_fr.doc"]
["Dans l'éventualité où les documents ne sont pas joints, veuillez indiquer la raison."]
[]
[1,"Les états financiers peuvent être à l’état de projet à condition que vous nous fassiez parvenir une version finale des états financiers dès qu’ils seront disponibles."]
[]
[]
[]
["6.  ","DÉCLARATION DU REPRÉSENTANT OU DU MANDATAIRE AUTORISÉ DE LA SOCIÉTÉ "]
["Je, soussigné(e), représentant(e) ou mandataire dûment autorisé(e) de la société, déclare que les renseignements fournis dans le présent formulaire, les annexes et les documents afférents sont complets et véridiques en tous points."]
["Je, soussigné(e), représentant(e) ou mandataire dûment autorisé de la société, déclare que la société s'est assurée de respecter les obligations prévues en vertu de la Loi sur les valeurs mobilières et elle reconnaît qu'Investissement Québec n'encourt aucune responsabilité à cet égard."]
[]
["Je soussigné(e), représentant(e) ou mandataire dûment autorisé(e) de la société, autorise Investissement Québec à communiquer avec Revenu Québec afin d'obtenir les renseignements pouvant s’avérer nécessaires à l'examen du respect des conditions d'admissibilité de la société."]
["Je soussigné(e), représentant(e) ou mandataire dûment autorisé(e) de la société, représente et garantis à Investissement Québec  que la société a obtenu, conformément à la loi, tous les consentements requis des personnes concernées par les renseignements personnels divulgués en lien avec cette demande et qui sont nécessaires afin qu’Investissement Québec puisse les utiliser, les communiquer à Revenu Québec ou aux prestataires de services ou partenaires d'Investissement Québec si nécessaire, les transférer hors Québec si applicable, le tout, aux fins de traiter la demande de la société.\n"]
[]
["Enfin, je certifie que la société n'a pas modifié le contenu du présent formulaire."]
[]
["Signature du représentant ou du mandataire autorisé \nde la société",null,null,null,null,null,null,null,null,null,null,null,null,null,null,null,null,null,null,null,null,null,null,"Date"]

{"sheet":"Annexe A-Revenu brut","index":2,"n_rows":37,"n_cols":9,"rows_kept":37,"cut":false,"hidden":false,"merged":[[36,0,36,8],[8,0,8,6],[17,3,17,4],[9,0,9,4],[10,0,10,4],[13,0,13,6],[14,3,14,4],[15,3,15,4],[16,3,16,4],[28,3,28,4],[29,3,29,4],[30,3,30,4],[27,6,27,7],[28,6,28,7],[29,6,29,7],[24,6,24,7],[33,0,33,4],[24,3,24,4],[25,3,25,4],[26,3,26,4],[25,6,25,7],[26,6,26,7],[30,6,30,7],[31,6,31,7],[32,6,32,7],[27,3,27,4],[31,3,31,4],[32,0,32,4],[17,6,17,7],[18,6,18,7],[19,6,19,7],[20,6,20,7],[21,6,21,7],[22,6,22,7],[23,6,23,7],[18,3,18,4],[19,3,19,4],[20,3,20,4],[21,3,21,4],[22,3,22,4],[23,3,23,4],[17,9,17,14],[19,9,19,10],[0,7,0,8],[9,6,9,7],[12,2,12,4],[10,6,10,7],[14,6,14,7],[15,6,15,7],[16,6,16,7],[1,2,1,6],[7,0,7,8],[5,0,5,8],[2,0,2,8],[3,0,3,8],[4,0,4,8],[6,0,6,8]]}
[null,null,null,null,null,null,null,{"$f":"Directives!N1","v":"Capital synergie\n(version 2021-06)"}]
[]
["Annexe A -Suivi de placement autorisé"]
["Activités admissibles"]
["(L'Annexe A fait partie intégrante du présent formulaire)"]
["Une société respecte cette condition d'admissibilité lorsque les activités qu'elle exerce, pour l'exercice financier visé, sont principalement des activités admissibles."]
["Description des postes de revenus de la balance de vérification"]
["Énumérez tous les comptes de revenus inclus à la balance de vérification qui composent le revenu brut présenté aux états financiers non consolidés pour l'exercice financier visé. (voir notes 1 et 2).\n\nPour chacun des comptes, veuillez décrire la nature des revenus constatés dans chacun des postes de revenus inclus à votre balance de vérification et identifier les revenus bruts provenant d'activités admissibles et non admissibles."]
[]
["Nom de la société",null,null,null,null,null,"Numéro de dossier IQ "]
[{"$f":"IF('Suivi de placement autorisé'!A6=\"\",\"\",'Suivi de placement autorisé'!A6)","v":""},null,null,null,null,null,{"$f":"IF('Suivi de placement autorisé'!U9=\"\",\"\",'Suivi de placement autorisé'!U9)","v":""}]
[]
[null,null,"Exercice financier du :",null,null,{"$f":"IF('Suivi de placement autorisé'!I53=\"\",\"\",'Suivi de placement autorisé'!I53)","v":""},"au :",{"$f":"IF('Suivi de placement autorisé'!Q53=\"\",\"\",'Suivi de placement autorisé'!Q53)","v":""}]
[]
["Nom de la société ou de la société associée le cas échéant","# Compte","Nom du compte","Description des produits ou des services ayant généré les revenus inclus dans ce compte",null,"Montant de revenu brut provenant d'activités admissibles \n(note 1)","Montant de revenu brut provenant d'activités non admissibles \n(note 1)",null,"Pourcentage des activités admissibles"]
["Société ABC","Exemple :\n#4010","Ventes de produits","Fabrication de matériel informatique",null,125000,0,null,{"$f":"F16/(SUM(G$16:G$18)+SUM(F$16:F$18))","v":0.5}]
["Société ABC","Exemple :\n#4020","Revenu de service","Conception de système d'information",null,25000,0,null,{"$f":"F17/(SUM(G$16:G$18)+SUM(F$16:F$18))","v":0.1}]
["Société XYZ","Exemple :\n#4001","Revenu de ventes ","Édition de livres",null,0,100000,null,{"$f":"F18/(SUM(G$16:G$18)+SUM(F$16:F$18))","v":0}]
[null,null,null,null,null,null,null,null,{"$f":"F19/($F$33+$G$33)","v":{"$error":"#DIV/0!"}}]
[null,null,null,null,null,null,null,null,{"$f":"F20/($F$33+$G$33)","v":{"$error":"#DIV/0!"}}]
[null,null,null,null,null,null,null,null,{"$error":"#DIV/0!"}]
[null,null,null,null,null,null,null,null,{"$error":"#DIV/0!"}]
[null,null,null,null,null,null,null,null,{"$error":"#DIV/0!"}]
[null,null,null,null,null,null,null,null,{"$error":"#DIV/0!"}]
[null,null,null,null,null,null,null,null,{"$error":"#DIV/0!"}]
[null,null,null,null,null,null,null,null,{"$error":"#DIV/0!"}]
[null,null,null,null,null,null,null,null,{"$error":"#DIV/0!"}]
[null,null,null,null,null,null,null,null,{"$error":"#DIV/0!"}]
[null,null,null,null,null,null,null,null,{"$error":"#DIV/0!"}]
[null,null,null,null,null,null,null,null,{"$error":"#DIV/0!"}]
[null,null,null,null,null,null,null,null,{"$error":"#DIV/0!"}]
[null,null,null,null,null,null,null,null,{"$error":"#DIV/0!"}]
["Répartition du revenu brut par activités admissibles et non admissibles",null,null,null,null,{"$f":"SUM(F19:F32)","v":0},{"$f":"SUM(G19:H32)","v":0},null,{"$f":"SUM(I19:I32)","v":{"$error":"#DIV/0!"}}]
["Revenu brut pour l'exercice financier visé (note 2)",null,null,null,null,{"$f":"F33+G33","v":0}]
[]
["note 1 :  Le revenu brut doit être présenté en excluant les transactions intervenues entre les sociétés associées."]
["note 2 : Le montant présenté à titre de revenu brut doit correspondre au revenu brut présenté à l'état consolidé des résultats de la société et de toutes les sociétés auxquelles elle est associée au cours de l'exercice financier visé."]

{"sheet":"Annexe B-Utilisation des fonds","index":3,"n_rows":39,"n_cols":8,"rows_kept":39,"cut":false,"hidden":false,"merged":[[31,0,31,6],[6,0,6,3],[16,2,16,3],[17,2,17,3],[19,2,19,3],[20,2,20,3],[21,2,21,3],[22,2,22,3],[23,2,23,3],[24,2,24,3],[25,2,25,3],[8,0,8,5],[26,2,26,3],[12,0,12,1],[22,7,22,8],[23,7,23,8],[18,7,18,8],[18,2,18,3],[28,0,28,6],[26,7,26,8],[24,7,24,8],[25,7,25,8],[19,7,19,8],[20,7,20,8],[0,5,0,8],[1,0,1,8],[2,0,2,8],[3,0,3,8],[4,0,4,8],[5,0,5,4],[7,0,7,1],[16,7,16,8],[17,7,17,8],[21,7,21,8],[14,0,14,2],[5,5,5,6]]}
[null,null,null,null,null,{"$f":"Directives!N1","v":"Capital synergie\n(version 2021-06)"}]
["Annexe B - Suivi de placement autorisé"]
[" Utilisation des fonds provenant de l'émission d'actions"]
["(L'Annexe B fait partie intégrante du présent formulaire)"]
["Vous devez fournir le détail de l'utilisation des fonds provenant de l'émission d'actions émises suite à la délivrance de l'attestation de placement autorisé."]
["Nom de la société",null,null,null,null,"Numéro de dossier IQ "]
[{"$f":"IF('Suivi de placement autorisé'!A6=\"\",\"\",'Suivi de placement autorisé'!A6)","v":""},null,null,null,null,{"$f":"IF('Suivi de placement autorisé'!U9=\"\",\"\",'Suivi de placement autorisé'!U9)","v":""}]
[]
[]
["Exercice financier du :",{"$f":"IF('Suivi de placement autorisé'!I53=\"\",\"\",'Suivi de placement autorisé'!I53)","v":""},"au",{"$f":"IF('Suivi de placement autorisé'!Q53=\"\",\"\",'Suivi de placement autorisé'!Q53)","v":""}]
[null,"(aaaa-mm-jj)",null,"(aaaa-mm-jj)"]
[]
["Montant indiqué sur l'attestation de placement autorisé: ",null,null,{"$f":"IF('Suivi de placement autorisé'!AB49=\"\",\"\",'Suivi de placement autorisé'!AB49)","v":""}]
[]
["Montant attribué à un ou des investisseur(s) admissible(s):",null,null,{"$f":"'Suivi de placement autorisé'!AB51","v":0}]
[]
["Description des dépenses d'investissement projetées conformément à la description présentée lors du dépôt de la demande d'attestation de placement autorisé","Montant prévu au dépôt de la demande d'attestation ou solde du montant prévu de  l'exercice financier précédent \n(note 1)","Dépense engagée au cours de l'exercice financier visé \n(note 2)",null,"Solde des investissements à réaliser dans les exercices financiers subséquents","Date de l'investissement si applicable","Pièces justificatives jointes\n(note 3)","Commentaires, le cas échéant"]
[null,null,null,null,{"$f":"B18-C18","v":0}]
[null,null,null,null,{"$f":"B19-C19","v":0}]
[null,null,null,null,{"$f":"B20-C20","v":0}]
[null,null,null,null,{"$f":"B21-C21","v":0}]
[null,null,null,null,{"$f":"B22-C22","v":0}]
[null,null,null,null,{"$f":"B23-C23","v":0}]
[null,null,null,null,0]
[]
[]
["Total",{"$f":"SUM(B18:B26)","v":0},{"$f":"SUM(C18:D26)","v":0},null,{"$f":"B27-C27","v":0}]
[]
["note 1 : Le montant total doit correspondre au moindre du montant apparaissant sur l'attestation de placement autorisé et le montant des fonds reçu en contrepartie de l'émission des actions du capital-actions de la société et attribué à un ou des investisseurs admissibles."]
["note 2 : Pour une dépense de salaire, compléter l'annexe C : détails des employés."]
[]
["note 3 : Joindre les pièces justificatives pour chacun des investissements effectués au cours de l'exercice financier visé et choisir dans le menu déroulant le document fourni."]
[]
[]
["Facture"]
["Contrat ou entente"]
["Bail"]
["Employés annexe C"]
["Autre, préciser dans commentaires"]

{"sheet":"Annexe C- Détails des employés","index":4,"n_rows":31,"n_cols":10,"rows_kept":31,"cut":false,"hidden":false,"merged":[[12,9,13,9],[12,2,13,3],[23,0,23,6],[12,0,13,0],[12,1,13,1],[12,4,13,4],[12,5,12,6],[12,7,13,7],[22,2,22,3],[14,2,14,3],[15,2,15,3],[16,2,16,3],[17,2,17,3],[12,8,13,8],[32,6,34,6],[32,0,33,0],[32,1,33,1],[32,3,33,4],[32,5,34,5],[25,0,25,9],[18,2,18,3],[19,2,19,3],[20,2,20,3],[21,2,21,3],[0,4,0,9],[4,0,4,9],[2,0,2,9],[7,0,7,1],[8,0,8,1],[6,0,6,1],[1,0,1,9],[3,0,3,9],[6,5,6,6],[7,5,7,6]]}
[null,null,null,null,{"$f":"Directives!N1","v":"Capital synergie\n(version 2021-06)"}]
["Annexe C - Suivi de placement autorisé"]
[" Utilisation des fonds provenant de l'émission d'actions relative à une dépense de salaire, le cas échéant"]
["(L'Annexe C fait partie intégrante du présent formulaire)"]
["Vous devez fournir le détail de la dépense de salaire indiquée à l'annexe B et engagée au cours de l'exercice financier visé."]
[]
["Nom de la société",null,null,null,null,"Numéro de dossier IQ "]
[{"$f":"IF('Suivi de placement autorisé'!A6=\"\",\"\",'Suivi de placement autorisé'!A6)","v":""},null,null,null,null,{"$f":"IF('Suivi de placement autorisé'!U9=\"\",\"\",'Suivi de placement autorisé'!U9)","v":""}]
[]
["Exercice financier du :",{"$f":"IF('Suivi de placement autorisé'!I53=\"\",\"\",'Suivi de placement autorisé'!I53)","v":""},"au",{"$f":"IF('Suivi de placement autorisé'!Q53=\"\",\"\",'Suivi de placement autorisé'!Q53)","v":""}]
[null,"(aaaa-mm-jj)",null,"(aaaa-mm-jj)"]
[]
["Nom de l'employé","N.A.S.","Titre du poste  occupé par l'employé",null,"Date d'embauche","Période d'emploi pendant l'exercice financier visé",null,"Salaire brut versé pour cette période d'emploi \n(note 2)","Cet employé est-il toujours à l'emploi de la société au dépôt du formulaire de suivi de placement autorisé pour l'exercice financier visé (note 3)","Commentaires, le cas échéant"]
[null,null,null,null,null,"Du :\n(aaaa-mm-jj)","Au :\n (aaaa-mm-jj)"]
[]
[]
[]
[]
[]
[]
[]
[]
[]
["Total",null,null,null,null,null,null,{"$f":"SUM(H15:H23)","v":0}]
[]
["note 1: Joindre les pièces justificatives pour chacun des employés, contrat d'embauche, curriculum vitae et registre de paie."]
["note 2: Le montant total doit correspondre au montant indiqué à l'annexe B  pour la dépense de salaire, le cas échéant."]
["note 3: Si l'employé n'est plus à l'emploi de la société, joindre le relevé d'emploi."]
[]
["oui"]
["non"]

{"sheet":"Liste des établissements","index":5,"n_rows":33,"n_cols":27,"rows_kept":33,"cut":false,"hidden":false,"merged":[[1,0,1,1],[11,0,11,1],[9,4,9,5],[10,4,10,5],[2,0,2,1],[8,4,8,5],[6,0,6,1],[3,0,3,1],[4,0,4,1]]}
[null,{"$f":"Directives!N1","v":"Capital synergie\n(version 2021-06)"}]
["Suivi de placement autorisé"]
["Liste des établissements"]
["Dans le cas où la société a plus d'un établissement"]
[]
["Nom de la société"]
[{"$f":"IF('Suivi de placement autorisé'!A6=\"\",\"\",'Suivi de placement autorisé'!A6)","v":""},null,null,""]
[]
["Exercice financier du ",{"$f":"IF('Suivi de placement autorisé'!I53=\"\",\"\",'Suivi de placement autorisé'!I53)","v":""},null,"",""]
["Exercice financier au ",{"$f":"IF('Suivi de placement autorisé'!Q53=\"\",\"\",'Suivi de placement autorisé'!Q53)","v":""},null,"",""]
["Numéro de dossier ",{"$f":"IF('Suivi de placement autorisé'!U9=\"\",\"\",'Suivi de placement autorisé'!U9)","v":""},null,"",""]
["Adresse de tous les établissements  (une adresse d'établissement par ligne)"]
["Adresse principale"]
[null,{"$f":"IF('Suivi de placement autorisé'!A19:Z19=\"\",\"\",'Suivi de placement autorisé'!A19:Z19)","v":""},"","","","","","","","","","","","","","","","","","","","","","","","",""]
["Établissement 1"]
[]
["Établissement 2"]
[]
["Établissement 3"]
[]
["Établissement 4"]
[]
["Établissement 5"]
[]
["Établissement 6"]
[]
["Établissement 7"]
[]
["Établissement 8"]
[]
["Établissement 9"]
[]
["Établissement 10"]